{"text_format":"1","workbook":"xlsx","n_sheets":1,"sheets":["ورقه1"],"not_rendered":{"charts":0,"images":0,"macros":1,"external_links":0,"defined_names":0,"comments":0,"pivot_tables":0},"unopened":[],"bounds":{"document_bytes":16777216,"sheet_cells":100000,"rows_first":2000,"rows_last":500,"rows_between":2000,"halvings":0,"cell_chars":16384,"cell_head_chars":4096},"cells_cut":0,"cells_raw":0,"read":"whole","date_system":"1900"}

{"sheet":"ورقه1","index":0,"n_rows":108,"n_cols":20,"rows_kept":108,"cut":false,"hidden":false,"merged":[[6,0,6,3],[6,4,7,4]]}
[]
[]
[null,null,"المطلوب حماية الخلية إذا تلونت بالون الاحمر"]
[]
[]
[]
["بيانات اساسية",null,null,null,"اكتب درجة الإدارى فقط"]
["م","السجل","الاسم","الوظيفه"]
[{"$f":"IF(B9=\"\",\"\",ROW()-8)","v":""},null,null,"معلم",null,null,null,null,null,null,null,null,null,null,null,null,null,null,null,"كبيرمعلمين"]
[{"$f":"IF(B10=\"\",\"\",ROW()-8)","v":""},null,null,"كبيرمعلمين",null,null,null,null,null,null,null,null,null,null,null,null,null,null,null,"معلم خبير"]
["",null,null,"كبيرمعلمين",null,null,null,null,null,null,null,null,null,null,null,null,null,null,null,"معلم اول ا"]
["",null,null,"كبيرمعلمين",null,null,null,null,null,null,null,null,null,null,null,null,null,null,null,"معلم اول"]
["",null,null,"كبيرمعلمين",null,null,null,null,null,null,null,null,null,null,null,null,null,null,null,"معلم"]
["",null,null,"معلم خبير",null,null,null,null,null,null,null,null,null,null,null,null,null,null,null,"معلم مساعد"]
["",null,null,"معلم خبير",null,null,null,null,null,null,null,null,null,null,null,null,null,null,null,"اخصائى اجتماعى"]
["",null,null,"معلم خبير",null,null,null,null,null,null,null,null,null,null,null,null,null,null,null,"اخصائى تغذيه"]
["",null,null,"معلم خبير",null,null,null,null,null,null,null,null,null,null,null,null,null,null,null,"مشرف تغذيه"]
["",null,null,"معلم خبير",null,null,null,null,null,null,null,null,null,null,null,null,null,null,null,"امين معمل"]
["",null,null,"معلم خبير",null,null,null,null,null,null,null,null,null,null,null,null,null,null,null,"كاتب"]
["",null,null,"معلم اول ا",null,null,null,null,null,null,null,null,null,null,null,null,null,null,null,"عامل"]
["",null,null,"معلم اول ا"]
["",null,null,"معلم اول ا"]
["",null,null,"معلم اول"]
["",null,null,"معلم اول"]
["",null,null,"معلم اول"]
["",null,null,"معلم اول"]
["",null,null,"معلم"]
["",null,null,"معلم"]
["",null,null,"معلم"]
["",null,null,"معلم"]
["",null,null,"معلم"]
["",null,null,"كاتب","الثالثه"]
["",null,null,"امين معمل","الاولى"]
["",null,null,"كاتب","الاولى"]
["",null,null,"كاتب","الاولى"]
["",null,null,"عامل","الرابعه"]
["",null,null,"عامل","الرابعه"]
["",null,null,"عامل","الرابعه"]
["",null,null,"امين معمل"]
[""]
[""]
[""]
[""]
[""]
[""]
[""]
[""]
[""]
[""]
[""]
[""]
[""]
[""]
[""]
[""]
[""]
[""]
[""]
[""]
[""]
[""]
[""]
[""]
[""]
[""]
[""]
[""]
[""]
[""]
[""]
[""]
[""]
[""]
[{"$f":"IF(B74=\"\",\"\",ROW()-8)","v":""}]
[""]
[""]
[""]
[""]
[""]
[""]
[""]
[""]
[""]
[""]
[""]
[""]
[""]
[""]
[""]
[""]
[""]
[""]
[""]
[""]
[""]
[""]
[""]
[""]
[""]
[""]
[""]
[""]
[""]
[""]
[""]
[""]
[""]
[""]